[Event "Titled Tuesday Blitz April 11 Late 2023"]
[White "Korchmar, Vasiliy"]
[Black "Dilmukhametov, Artur"]
[WhiteFideId "24131750"]
[BlackFideId "24179922"]
[WhiteElo "2370"]
[BlackElo "2199"]
[Result "1-0"]
[Round "07"]
[TimeControl "180+2"]
[Date "2023.04.11"]
[WhiteClock "0:00:12"]
[BlackClock "0:00:02"]

1. e4 {[%clk 0:03:00]}  e5 {[%clk 0:02:59]} 2. Nf3 {[%clk 0:02:59]}  Nf6 {[%clk 0:03:00]} 3. Nc3 {[%clk 0:02:59]}  Nc6 {[%clk 0:02:59]} 4. h3 {[%clk 0:02:59]}  Bb4 {[%clk 0:02:59]} 5. Nd5 {[%clk 0:02:59]}  Nxd5 {[%clk 0:02:57]} 6. exd5 {[%clk 0:02:58]}  Ne7 {[%clk 0:02:58]} 7. Nxe5 {[%clk 0:02:40]}  Nxd5 {[%clk 0:02:57]} 8. Bc4 {[%clk 0:02:40]}  Qe7 {[%clk 0:02:55]} 9. O-O {[%clk 0:02:39]}  O-O {[%clk 0:02:38]} 10. d4 {[%clk 0:02:20]}  d6 {[%clk 0:02:35]} 11. Nd3 {[%clk 0:02:14]}  Nb6 {[%clk 0:01:47]} 12. Bb3 {[%clk 0:02:10]}  Ba5 {[%clk 0:01:46]} 13. Qh5 {[%clk 0:02:10]}  d5 {[%clk 0:01:43]} 14. Bxd5 {[%clk 0:02:10]}  Nxd5 {[%clk 0:01:42]} 15. Qxd5 {[%clk 0:02:10]}  Bb6 {[%clk 0:01:42]} 16. c3 {[%clk 0:02:11]}  Be6 {[%clk 0:01:36]} 17. Qxb7 {[%clk 0:02:05]}  Qd7 {[%clk 0:01:36]} 18. Nf4 {[%clk 0:01:53]}  Bf5 {[%clk 0:01:35]} 19. Qd5 {[%clk 0:01:49]}  Qc8 {[%clk 0:01:30]} 20. Re1 {[%clk 0:01:47]}  c6 {[%clk 0:01:31]} 21. Qf3 {[%clk 0:01:38]}  Qd7 {[%clk 0:01:31]} 22. Nh5 {[%clk 0:01:31]}  Bg6 {[%clk 0:01:27]} 23. Bf4 {[%clk 0:01:31]}  Rfe8 {[%clk 0:01:23]} 24. Be5 {[%clk 0:01:28]}  f6 {[%clk 0:01:17]} 25. Nxf6+ {[%clk 0:01:12]}  gxf6 {[%clk 0:01:16]} 26. Qxf6 {[%clk 0:01:13]}  Rxe5 {[%clk 0:01:07]} 27. Rxe5 {[%clk 0:01:14]}  Rf8 {[%clk 0:01:04]} 28. Qe6+ {[%clk 0:01:14]}  Qf7 {[%clk 0:00:58]} 29. Rae1 {[%clk 0:01:08]}  Kg7 {[%clk 0:00:58]} 30. Qxf7+ {[%clk 0:01:08]}  Bxf7 {[%clk 0:00:59]} 31. Re7 {[%clk 0:01:06]}  Kf6 {[%clk 0:00:56]} 32. b3 {[%clk 0:00:54]}  Ba5 {[%clk 0:00:56]} 33. b4 {[%clk 0:00:48]}  Bb6 {[%clk 0:00:55]} 34. a4 {[%clk 0:00:46]}  a5 {[%clk 0:00:44]} 35. Rb7 {[%clk 0:00:46]}  Bd8 {[%clk 0:00:44]} 36. Re3 {[%clk 0:00:40]}  Bd5 {[%clk 0:00:43]} 37. Rxh7 {[%clk 0:00:30]}  Kg6 {[%clk 0:00:41]} 38. Ra7 {[%clk 0:00:24]}  axb4 {[%clk 0:00:37]} 39. cxb4 {[%clk 0:00:25]}  Bh4 {[%clk 0:00:37]} 40. Re2 {[%clk 0:00:20]}  Kh6 {[%clk 0:00:29]} 41. Rc7 {[%clk 0:00:14]}  Rg8 {[%clk 0:00:28]} 42. g3 {[%clk 0:00:11]}  Bd8 {[%clk 0:00:25]} 43. Rc8 {[%clk 0:00:10]}  Rf8 {[%clk 0:00:16]} 44. a5 {[%clk 0:00:10]}  Kg7 {[%clk 0:00:12]} 45. Rc2 {[%clk 0:00:06]}  Bf6 {[%clk 0:00:06]} 46. Rxf8 {[%clk 0:00:06]}  Kxf8 {[%clk 0:00:07]} 47. Rd2 {[%clk 0:00:04]}  Bd8 {[%clk 0:00:07]} 48. a6 {[%clk 0:00:04]}  Bb6 {[%clk 0:00:07]} 49. h4 {[%clk 0:00:04]}  Ba7 {[%clk 0:00:07]} 50. h5 {[%clk 0:00:04]}  Kg7 {[%clk 0:00:08]} 51. g4 {[%clk 0:00:04]}  Kh6 {[%clk 0:00:08]} 52. Kh2 {[%clk 0:00:05]}  Kg5 {[%clk 0:00:08]} 53. Kh3 {[%clk 0:00:05]}  Bb8 {[%clk 0:00:09]} 54. Re2 {[%clk 0:00:04]}  Bf3 {[%clk 0:00:08]} 55. Re8 {[%clk 0:00:02]}  Bxg4+ {[%clk 0:00:08]} 56. Kg2 {[%clk 0:00:03]}  Ba7 {[%clk 0:00:07]} 57. Ra8 {[%clk 0:00:03]}  Bxd4 {[%clk 0:00:07]} 58. a7 {[%clk 0:00:04]}  Be6 {[%clk 0:00:06]} 59. Rg8+ {[%clk 0:00:03]}  Bxg8 {[%clk 0:00:07]} 60. a8=Q {[%clk 0:00:04]}  Bd5+ {[%clk 0:00:08]} 61. Kf1 {[%clk 0:00:04]}  Bc4+ {[%clk 0:00:07]} 62. Ke1 {[%clk 0:00:04]}  Bc3+ {[%clk 0:00:08]} 63. Kd1 {[%clk 0:00:04]}  Bd5 {[%clk 0:00:08]} 64. Qd8+ {[%clk 0:00:03]}  Bf6 {[%clk 0:00:08]} 65. Qd6 {[%clk 0:00:02]}  Kf5 {[%clk 0:00:06]} 66. h6 {[%clk 0:00:02]}  Be5 {[%clk 0:00:06]} 67. Qd7+ {[%clk 0:00:02]}  Be6 {[%clk 0:00:05]} 68. Qxc6 {[%clk 0:00:03]}  Bb3+ {[%clk 0:00:05]} 69. Kd2 {[%clk 0:00:03]}  Bf4+ {[%clk 0:00:05]} 70. Kc3 {[%clk 0:00:03]}  Be6 {[%clk 0:00:05]} 71. Qc5+ {[%clk 0:00:04]}  Be5+ {[%clk 0:00:05]} 72. Kd2 {[%clk 0:00:03]}  Kf6 {[%clk 0:00:02]} 73. Qxe5+ {[%clk 0:00:02]}  Kxe5 {[%clk 0:00:03]} 74. h7 {[%clk 0:00:03]}  Kd5 {[%clk 0:00:03]} 75. h8=Q {[%clk 0:00:03]}  Bd7 {[%clk 0:00:04]} 76. Qh4 {[%clk 0:00:04]}  Kc6 {[%clk 0:00:04]} 77. Qg3 {[%clk 0:00:05]}  Be6 {[%clk 0:00:04]} 78. Qc3+ {[%clk 0:00:06]}  Kb5 {[%clk 0:00:05]} 79. Ke3 {[%clk 0:00:07]}  Kb6 {[%clk 0:00:03]} 80. Kf4 {[%clk 0:00:08]}  Kb7 {[%clk 0:00:03]} 81. Ke5 {[%clk 0:00:09]}  Bd7 {[%clk 0:00:04]} 82. f4 {[%clk 0:00:09]}  Bc6 {[%clk 0:00:04]} 83. Qd4 {[%clk 0:00:10]}  Bb5 {[%clk 0:00:04]} 84. Qc5 {[%clk 0:00:11]}  Bd7 {[%clk 0:00:02]} 85. Kd6 {[%clk 0:00:12]} 1-0


[Site "https://www.chess.com"]

[Event "Titled Tuesday Blitz April 11 Late 2023"]
[White "Duda, Jan-Krzysztof"]
[Black "Albuquerque Junior,Wellington S."]
[WhiteFideId "1170546"]
[BlackFideId "2151480"]
[WhiteElo "2790"]
[BlackElo "2109"]
[Result "1-0"]
[Round "07"]
[TimeControl "180+2"]
[Date "2023.04.11"]
[WhiteClock "0:02:20"]
[BlackClock "0:00:12"]

1. e4 {[%clk 0:03:00]}  c5 {[%clk 0:02:53]} 2. Nf3 {[%clk 0:02:58]}  d6 {[%clk 0:02:52]} 3. d4 {[%clk 0:02:59]}  cxd4 {[%clk 0:02:53]} 4. Nxd4 {[%clk 0:02:59]}  Nf6 {[%clk 0:02:54]} 5. Nc3 {[%clk 0:02:59]}  Nc6 {[%clk 0:02:54]} 6. Be2 {[%clk 0:02:56]}  e5 {[%clk 0:02:52]} 7. Nb3 {[%clk 0:02:56]}  Be7 {[%clk 0:02:52]} 8. Be3 {[%clk 0:02:55]}  a5 {[%clk 0:02:46]} 9. O-O {[%clk 0:02:50]}  O-O {[%clk 0:02:43]} 10. Nd2 {[%clk 0:02:50]}  Be6 {[%clk 0:02:39]} 11. Nc4 {[%clk 0:02:46]}  Bxc4 {[%clk 0:01:54]} 12. Bxc4 {[%clk 0:02:43]}  a4 {[%clk 0:01:48]} 13. a3 {[%clk 0:02:42]}  Qa5 {[%clk 0:01:42]} 14. h3 {[%clk 0:02:30]}  Rfc8 {[%clk 0:01:36]} 15. Qd3 {[%clk 0:02:30]}  h6 {[%clk 0:01:11]} 16. Rfd1 {[%clk 0:02:27]}  Nd4 {[%clk 0:00:49]} 17. Bxd4 {[%clk 0:02:25]}  exd4 {[%clk 0:00:50]} 18. Qxd4 {[%clk 0:02:26]}  Qc5 {[%clk 0:00:38]} 19. Bb5 {[%clk 0:02:25]}  Qxd4 {[%clk 0:00:33]} 20. Rxd4 {[%clk 0:02:26]}  Ra5 {[%clk 0:00:23]} 21. Bxa4 {[%clk 0:02:24]}  Nh5 {[%clk 0:00:18]} 22. Nd5 {[%clk 0:02:23]}  Bf8 {[%clk 0:00:17]} 23. Bb3 {[%clk 0:02:22]}  Rac5 {[%clk 0:00:12]} 24. Rad1 {[%clk 0:02:20]} 1-0


[Site "https://www.chess.com"]

[Event "Titled Tuesday Blitz April 11 Late 2023"]
[White "Leitao, Rafael"]
[Black "Ozates, Tuna"]
[WhiteFideId "2101246"]
[BlackFideId "6354521"]
[WhiteElo "2609"]
[BlackElo "2151"]
[Result "1-0"]
[Round "07"]
[TimeControl "180+2"]
[Date "2023.04.11"]
[WhiteClock "0:01:23"]
[BlackClock "0:02:11"]

1. c4 {[%clk 0:03:00]}  e5 {[%clk 0:02:59]} 2. Nc3 {[%clk 0:03:00]}  Nc6 {[%clk 0:02:55]} 3. Nf3 {[%clk 0:03:00]}  Nf6 {[%clk 0:02:52]} 4. e4 {[%clk 0:03:00]}  d6 {[%clk 0:02:47]} 5. d4 {[%clk 0:02:54]}  exd4 {[%clk 0:02:47]} 6. Nxd4 {[%clk 0:02:53]}  Be7 {[%clk 0:02:47]} 7. Be2 {[%clk 0:02:49]}  O-O {[%clk 0:02:47]} 8. O-O {[%clk 0:02:50]}  Nd7 {[%clk 0:02:46]} 9. Nf5 {[%clk 0:02:44]}  Bf6 {[%clk 0:02:45]} 10. Nd5 {[%clk 0:02:43]}  Re8 {[%clk 0:02:42]} 11. f3 {[%clk 0:02:38]}  Nde5 {[%clk 0:02:39]} 12. Nxf6+ {[%clk 0:02:30]}  Qxf6 {[%clk 0:02:39]} 13. Ne3 {[%clk 0:02:29]}  Be6 {[%clk 0:02:38]} 14. f4 {[%clk 0:02:22]}  Nd7 {[%clk 0:02:37]} 15. f5 {[%clk 0:02:18]}  Bxc4 {[%clk 0:02:34]} 16. Bxc4 {[%clk 0:02:10]}  Rxe4 {[%clk 0:02:34]} 17. Bd5 {[%clk 0:01:58]}  Rd4 {[%clk 0:02:33]} 18. Qf3 {[%clk 0:01:56]}  Nde5 {[%clk 0:02:31]} 19. Qg3 {[%clk 0:01:53]}  Rd3 {[%clk 0:02:29]} 20. Be4 {[%clk 0:01:49]}  Rd4 {[%clk 0:02:25]} 21. Nd5 {[%clk 0:01:47]}  Qd8 {[%clk 0:02:24]} 22. Bh6 {[%clk 0:01:40]}  g6 {[%clk 0:02:17]} 23. fxg6 {[%clk 0:01:36]}  fxg6 {[%clk 0:02:11]} 24. Bg5 {[%clk 0:01:23]} 1-0


[Site "https://www.chess.com"]

[Event "Titled Tuesday Blitz April 11 Late 2023"]
[White "De La Colina, Nicolas"]
[Black "Sztokbant, Bernardo Vainzoff"]
[WhiteFideId "30946921"]
[BlackFideId "2115956"]
[WhiteElo "2046"]
[BlackElo "2222"]
[Result "1-0"]
[Round "07"]
[TimeControl "180+2"]
[Date "2023.04.11"]
[WhiteClock "0:00:10"]
[BlackClock "0:00:02"]

1. e4 {[%clk 0:03:00]}  c5 {[%clk 0:02:51]} 2. Nf3 {[%clk 0:03:00]}  Nc6 {[%clk 0:02:49]} 3. c3 {[%clk 0:02:54]}  d5 {[%clk 0:02:49]} 4. exd5 {[%clk 0:02:55]}  Qxd5 {[%clk 0:02:49]} 5. d4 {[%clk 0:02:55]}  Bg4 {[%clk 0:02:49]} 6. dxc5 {[%clk 0:02:56]}  Qxd1+ {[%clk 0:02:48]} 7. Kxd1 {[%clk 0:02:57]}  e5 {[%clk 0:02:43]} 8. b4 {[%clk 0:02:56]}  a5 {[%clk 0:02:37]} 9. b5 {[%clk 0:02:42]}  Nce7 {[%clk 0:02:21]} 10. h3 {[%clk 0:02:33]}  Bxf3+ {[%clk 0:02:21]} 11. gxf3 {[%clk 0:02:34]}  Ng6 {[%clk 0:02:07]} 12. c6 {[%clk 0:02:25]}  bxc6 {[%clk 0:02:06]} 13. a4 {[%clk 0:02:24]}  O-O-O+ {[%clk 0:01:58]} 14. Kc2 {[%clk 0:02:23]}  N8e7 {[%clk 0:01:56]} 15. Nd2 {[%clk 0:01:58]}  Nh4 {[%clk 0:01:43]} 16. Be2 {[%clk 0:01:47]}  Nd5 {[%clk 0:01:16]} 17. Nb3 {[%clk 0:01:45]}  Nxc3 {[%clk 0:01:10]} 18. Kxc3 {[%clk 0:01:39]}  Bb4+ {[%clk 0:01:11]} 19. Kc2 {[%clk 0:01:38]}  cxb5 {[%clk 0:01:06]} 20. axb5 {[%clk 0:01:31]}  Nf5 {[%clk 0:01:05]} 21. Bb2 {[%clk 0:01:15]}  f6 {[%clk 0:01:06]} 22. Rhd1 {[%clk 0:00:46]}  Kc7 {[%clk 0:01:01]} 23. Bc3 {[%clk 0:00:39]}  Rxd1 {[%clk 0:00:52]} 24. Bxd1 {[%clk 0:00:38]}  Kb6 {[%clk 0:00:41]} 25. Bxb4 {[%clk 0:00:29]}  axb4 {[%clk 0:00:42]} 26. Be2 {[%clk 0:00:29]}  Rc8+ {[%clk 0:00:39]} 27. Kb2 {[%clk 0:00:29]}  Rc3 {[%clk 0:00:28]} 28. Ra6+ {[%clk 0:00:29]}  Kc7 {[%clk 0:00:28]} 29. Ra7+ {[%clk 0:00:24]}  Kb6 {[%clk 0:00:24]} 30. Rd7 {[%clk 0:00:21]}  h5 {[%clk 0:00:14]} 31. Rf7 {[%clk 0:00:17]}  Rxb3+ {[%clk 0:00:09]} 32. Kxb3 {[%clk 0:00:16]}  Nd4+ {[%clk 0:00:10]} 33. Kxb4 {[%clk 0:00:16]}  Nxe2 {[%clk 0:00:11]} 34. Rxg7 {[%clk 0:00:16]}  Nf4 {[%clk 0:00:05]} 35. Kc4 {[%clk 0:00:15]}  Nxh3 {[%clk 0:00:04]} 36. Rg6 {[%clk 0:00:15]}  Ng5 {[%clk 0:00:03]} 37. Rxf6+ {[%clk 0:00:16]}  Kb7 {[%clk 0:00:03]} 38. Kc5 {[%clk 0:00:15]}  h4 {[%clk 0:00:02]} 39. Rf5 {[%clk 0:00:09]}  Ne6+ {[%clk 0:00:01]} 40. Kd6 {[%clk 0:00:09]}  Nd4 {[%clk 0:00:01]} 41. Rf7+ {[%clk 0:00:07]}  Kb6 {[%clk 0:00:01]} 42. Kxe5 {[%clk 0:00:08]}  Nxb5 {[%clk 0:00:01]} 43. Rh7 {[%clk 0:00:08]}  Nd4 {[%clk 0:00:01]} 44. Kxd4 {[%clk 0:00:08]}  Kc6 {[%clk 0:00:01]} 45. Rh6+ {[%clk 0:00:09]}  Kd7 {[%clk 0:00:01]} 46. Rxh4 {[%clk 0:00:10]}  Ke8 {[%clk 0:00:02]} 47. Ke4 {[%clk 0:00:10]} 1-0


[Site "https://www.chess.com"]

[Event "Titled Tuesday Blitz April 11 Late 2023"]
[White "Danielyan, Vahe"]
[Black "Hoffmann, Asa"]
[WhiteFideId "13304828"]
[BlackFideId "2001470"]
[WhiteElo "2423"]
[BlackElo "2117"]
[Result "1-0"]
[Round "07"]
[TimeControl "180+2"]
[Date "2023.04.11"]
[WhiteClock "0:01:34"]
[BlackClock "0:00:33"]

1. d4 {[%clk 0:03:00]}  Nf6 {[%clk 0:02:59]} 2. Nf3 {[%clk 0:03:00]}  d6 {[%clk 0:02:58]} 3. Nbd2 {[%clk 0:02:59]}  c6 {[%clk 0:02:58]} 4. e4 {[%clk 0:02:59]}  Bg4 {[%clk 0:02:57]} 5. Be2 {[%clk 0:02:58]}  e6 {[%clk 0:02:56]} 6. O-O {[%clk 0:02:58]}  d5 {[%clk 0:02:55]} 7. e5 {[%clk 0:02:58]}  Nfd7 {[%clk 0:02:55]} 8. h3 {[%clk 0:02:54]}  Bh5 {[%clk 0:02:55]} 9. Nb3 {[%clk 0:02:54]}  Be7 {[%clk 0:02:53]} 10. c3 {[%clk 0:02:54]}  b6 {[%clk 0:02:51]} 11. Nh2 {[%clk 0:02:54]}  Bg6 {[%clk 0:02:51]} 12. Bd3 {[%clk 0:02:52]}  c5 {[%clk 0:02:50]} 13. Bxg6 {[%clk 0:02:52]}  hxg6 {[%clk 0:02:50]} 14. Ng4 {[%clk 0:02:52]}  Nc6 {[%clk 0:02:49]} 15. Be3 {[%clk 0:02:52]}  a5 {[%clk 0:02:47]} 16. Rc1 {[%clk 0:02:52]}  a4 {[%clk 0:02:45]} 17. Na1 {[%clk 0:02:52]}  c4 {[%clk 0:02:43]} 18. Nc2 {[%clk 0:02:52]}  b5 {[%clk 0:02:40]} 19. a3 {[%clk 0:02:49]}  Na5 {[%clk 0:02:34]} 20. Qf3 {[%clk 0:02:48]}  Bg5 {[%clk 0:02:23]} 21. Rce1 {[%clk 0:02:48]}  Nb3 {[%clk 0:02:21]} 22. Nb4 {[%clk 0:02:48]}  Rc8 {[%clk 0:02:18]} 23. Bxg5 {[%clk 0:02:42]}  Qxg5 {[%clk 0:02:17]} 24. Nxd5 {[%clk 0:02:29]}  Nd2 {[%clk 0:02:11]} 25. Qe3 {[%clk 0:02:14]}  Qxe3 {[%clk 0:02:08]} 26. Ndxe3 {[%clk 0:02:14]}  Nxf1 {[%clk 0:02:07]} 27. Kxf1 {[%clk 0:02:11]}  Nb6 {[%clk 0:02:06]} 28. Ke2 {[%clk 0:02:08]}  Ke7 {[%clk 0:02:03]} 29. f4 {[%clk 0:02:06]}  Rcd8 {[%clk 0:02:02]} 30. Nf2 {[%clk 0:02:07]}  Nd5 {[%clk 0:02:01]} 31. Nxd5+ {[%clk 0:02:06]}  Rxd5 {[%clk 0:01:58]} 32. Ne4 {[%clk 0:02:06]}  f6 {[%clk 0:01:49]} 33. Kf3 {[%clk 0:02:00]}  Rh5 {[%clk 0:01:39]} 34. Ng3 {[%clk 0:01:51]}  Rh4 {[%clk 0:01:34]} 35. Nf1 {[%clk 0:01:44]}  g5 {[%clk 0:01:31]} 36. fxg5 {[%clk 0:01:42]}  fxg5 {[%clk 0:01:28]} 37. Ne3 {[%clk 0:01:40]}  Rf4+ {[%clk 0:01:27]} 38. Kg3 {[%clk 0:01:38]}  Rd8 {[%clk 0:01:26]} 39. Ng4 {[%clk 0:01:38]}  Rdf8 {[%clk 0:01:20]} 40. Re2 {[%clk 0:01:37]}  Rf1 {[%clk 0:01:18]} 41. Ne3 {[%clk 0:01:37]}  Rc1 {[%clk 0:01:10]} 42. d5 {[%clk 0:01:37]}  exd5 {[%clk 0:01:06]} 43. Nxd5+ {[%clk 0:01:37]}  Ke6 {[%clk 0:01:04]} 44. Nc7+ {[%clk 0:01:37]}  Kd7 {[%clk 0:01:02]} 45. Nxb5 {[%clk 0:01:38]}  Rd1 {[%clk 0:00:55]} 46. e6+ {[%clk 0:01:38]}  Ke7 {[%clk 0:00:55]} 47. Nd4 {[%clk 0:01:39]}  Rf4 {[%clk 0:00:51]} 48. Re5 {[%clk 0:01:37]}  Rd3+ {[%clk 0:00:50]} 49. Kh2 {[%clk 0:01:37]}  Rdxd4 {[%clk 0:00:49]} 50. cxd4 {[%clk 0:01:38]}  Rxd4 {[%clk 0:00:49]} 51. Rxg5 {[%clk 0:01:38]}  Kxe6 {[%clk 0:00:49]} 52. Rxg7 {[%clk 0:01:38]}  Rd2 {[%clk 0:00:49]} 53. Rb7 {[%clk 0:01:38]}  Rd3 {[%clk 0:00:41]} 54. Rb4 {[%clk 0:01:37]}  Kd5 {[%clk 0:00:39]} 55. Rxa4 {[%clk 0:01:35]}  Rb3 {[%clk 0:00:39]} 56. Rb4 {[%clk 0:01:35]}  Rxb4 {[%clk 0:00:34]} 57. axb4 {[%clk 0:01:36]}  Kc6 {[%clk 0:00:34]} 58. h4 {[%clk 0:01:34]}  Kb5 {[%clk 0:00:34]} 59. h5 {[%clk 0:01:34]}  Kxb4 {[%clk 0:00:34]} 60. h6 {[%clk 0:01:35]}  Kb3 {[%clk 0:00:34]} 61. h7 {[%clk 0:01:35]}  Kxb2 {[%clk 0:00:33]} 62. h8=Q+ {[%clk 0:01:34]} 1-0


[Site "https://www.chess.com"]

[Event "Titled Tuesday Blitz April 11 Late 2023"]
[White "Kula, Robert"]
[Black "Sabuk, Piotr"]
[WhiteFideId "1101218"]
[BlackFideId "1137565"]
[WhiteElo "2180"]
[BlackElo "2298"]
[Result "1-0"]
[Round "07"]
[TimeControl "180+2"]
[Date "2023.04.11"]
[WhiteClock "0:00:04"]
[BlackClock "0:00:03"]

1. d4 {[%clk 0:02:52]}  Nf6 {[%clk 0:02:59]} 2. c4 {[%clk 0:02:51]}  e6 {[%clk 0:03:00]} 3. Nc3 {[%clk 0:02:51]}  Bb4 {[%clk 0:02:59]} 4. Nf3 {[%clk 0:02:50]}  c5 {[%clk 0:02:55]} 5. e3 {[%clk 0:02:50]}  Nc6 {[%clk 0:02:47]} 6. Bd3 {[%clk 0:02:49]}  d6 {[%clk 0:02:44]} 7. O-O {[%clk 0:02:49]}  Bxc3 {[%clk 0:02:43]} 8. bxc3 {[%clk 0:02:48]}  e5 {[%clk 0:02:43]} 9. d5 {[%clk 0:02:35]}  Ne7 {[%clk 0:02:42]} 10. Qc2 {[%clk 0:02:33]}  Bg4 {[%clk 0:02:14]} 11. Nd2 {[%clk 0:02:30]}  Qc7 {[%clk 0:02:07]} 12. a4 {[%clk 0:02:25]}  a5 {[%clk 0:02:07]} 13. Rb1 {[%clk 0:02:22]}  b6 {[%clk 0:02:03]} 14. Rb2 {[%clk 0:02:04]}  Bd7 {[%clk 0:01:52]} 15. Nb1 {[%clk 0:02:04]}  O-O {[%clk 0:01:32]} 16. Na3 {[%clk 0:02:03]}  Rad8 {[%clk 0:01:18]} 17. Nb5 {[%clk 0:02:03]}  Qb8 {[%clk 0:01:18]} 18. f3 {[%clk 0:02:00]}  Rfe8 {[%clk 0:01:18]} 19. Bd2 {[%clk 0:02:00]}  Ng6 {[%clk 0:01:15]} 20. Rfb1 {[%clk 0:01:59]}  e4 {[%clk 0:00:48]} 21. Be2 {[%clk 0:01:45]}  Bf5 {[%clk 0:00:36]} 22. f4 {[%clk 0:01:44]}  Re7 {[%clk 0:00:28]} 23. Qd1 {[%clk 0:01:36]}  h6 {[%clk 0:00:22]} 24. Be1 {[%clk 0:01:32]}  Bc8 {[%clk 0:00:19]} 25. g4 {[%clk 0:01:23]}  Ba6 {[%clk 0:00:13]} 26. h4 {[%clk 0:01:18]}  Nd7 {[%clk 0:00:11]} 27. h5 {[%clk 0:01:12]}  Ngf8 {[%clk 0:00:12]} 28. Bh4 {[%clk 0:01:10]}  f6 {[%clk 0:00:11]} 29. Bf1 {[%clk 0:01:04]}  Rde8 {[%clk 0:00:11]} 30. Bh3 {[%clk 0:01:04]}  Bxb5 {[%clk 0:00:11]} 31. Rxb5 {[%clk 0:01:03]}  Qd8 {[%clk 0:00:11]} 32. Qe1 {[%clk 0:00:57]}  Kh7 {[%clk 0:00:10]} 33. g5 {[%clk 0:00:56]}  fxg5 {[%clk 0:00:10]} 34. fxg5 {[%clk 0:00:56]}  Kh8 {[%clk 0:00:11]} 35. g6 {[%clk 0:00:54]}  Qc7 {[%clk 0:00:10]} 36. Bxe7 {[%clk 0:00:51]}  Rxe7 {[%clk 0:00:11]} 37. Qg3 {[%clk 0:00:46]}  Kg8 {[%clk 0:00:11]} 38. R5b2 {[%clk 0:00:35]}  Re5 {[%clk 0:00:08]} 39. Bg4 {[%clk 0:00:32]}  Rg5 {[%clk 0:00:07]} 40. Rf1 {[%clk 0:00:32]}  Ne5 {[%clk 0:00:07]} 41. Rf4 {[%clk 0:00:31]}  Qd7 {[%clk 0:00:06]} 42. Be6+ {[%clk 0:00:27]}  Nxe6 {[%clk 0:00:06]} 43. dxe6 {[%clk 0:00:21]}  Rxg3+ {[%clk 0:00:06]} 44. Kh2 {[%clk 0:00:21]}  Qxe6 {[%clk 0:00:06]} 45. Kxg3 {[%clk 0:00:21]}  Nxg6 {[%clk 0:00:04]} 46. hxg6 {[%clk 0:00:20]}  Qxg6+ {[%clk 0:00:04]} 47. Kh2 {[%clk 0:00:18]}  Qh5+ {[%clk 0:00:04]} 48. Kg2 {[%clk 0:00:16]}  Qg5+ {[%clk 0:00:04]} 49. Kh2 {[%clk 0:00:16]}  Qe5 {[%clk 0:00:04]} 50. Rc2 {[%clk 0:00:14]}  Kh7 {[%clk 0:00:03]} 51. Kg2 {[%clk 0:00:13]}  g5 {[%clk 0:00:03]} 52. Rff2 {[%clk 0:00:11]}  Kg6 {[%clk 0:00:04]} 53. Rf8 {[%clk 0:00:09]}  Qe6 {[%clk 0:00:04]} 54. Rcf2 {[%clk 0:00:07]}  Qxc4 {[%clk 0:00:04]} 55. R8f6+ {[%clk 0:00:06]}  Kh5 {[%clk 0:00:04]} 56. Kg3 {[%clk 0:00:05]}  g4 {[%clk 0:00:03]} 57. R2f5# {[%clk 0:00:04]} 1-0


[Site "https://www.chess.com"]

[Event "Titled Tuesday Blitz April 11 Late 2023"]
[White "Alahakoon, Isuru"]
[Black "Di Berardino, Diego Rafael"]
[WhiteFideId "9900993"]
[BlackFideId "2105446"]
[WhiteElo "1995"]
[BlackElo "2432"]
[Result "0-1"]
[Round "07"]
[TimeControl "180+2"]
[Date "2023.04.11"]
[WhiteClock "0:00:10"]
[BlackClock "0:00:03"]

1. Nf3 {[%clk 0:03:00]}  Nf6 {[%clk 0:02:59]} 2. d4 {[%clk 0:03:00]}  g6 {[%clk 0:03:00]} 3. Bg5 {[%clk 0:03:00]}  Bg7 {[%clk 0:03:00]} 4. Nbd2 {[%clk 0:03:01]}  O-O {[%clk 0:03:00]} 5. c3 {[%clk 0:03:00]}  d6 {[%clk 0:02:59]} 6. e4 {[%clk 0:03:00]}  Nc6 {[%clk 0:02:53]} 7. Bc4 {[%clk 0:02:58]}  e5 {[%clk 0:02:48]} 8. dxe5 {[%clk 0:02:57]}  dxe5 {[%clk 0:02:46]} 9. O-O {[%clk 0:02:56]}  Qe7 {[%clk 0:02:46]} 10. b4 {[%clk 0:02:53]}  a6 {[%clk 0:02:41]} 11. Qe2 {[%clk 0:02:49]}  Be6 {[%clk 0:02:37]} 12. Nb3 {[%clk 0:02:45]}  h6 {[%clk 0:02:17]} 13. Bh4 {[%clk 0:02:41]}  Bxc4 {[%clk 0:01:47]} 14. Qxc4 {[%clk 0:02:40]}  Rfe8 {[%clk 0:01:40]} 15. Rfe1 {[%clk 0:02:30]}  Nd8 {[%clk 0:01:30]} 16. Rad1 {[%clk 0:02:26]}  b6 {[%clk 0:01:28]} 17. Rd2 {[%clk 0:02:03]}  Qe6 {[%clk 0:01:23]} 18. Qxe6 {[%clk 0:02:00]}  Rxe6 {[%clk 0:01:11]} 19. Red1 {[%clk 0:01:59]}  Nb7 {[%clk 0:01:08]} 20. Bxf6 {[%clk 0:01:56]}  Bxf6 {[%clk 0:01:07]} 21. Rd7 {[%clk 0:01:56]}  Rc6 {[%clk 0:00:58]} 22. R1d3 {[%clk 0:01:36]}  Nd6 {[%clk 0:00:57]} 23. g4 {[%clk 0:01:12]}  Kf8 {[%clk 0:00:53]} 24. h4 {[%clk 0:01:00]}  Ke8 {[%clk 0:00:51]} 25. Rxc7 {[%clk 0:00:58]}  Rxc7 {[%clk 0:00:51]} 26. Rxd6 {[%clk 0:00:59]}  Ke7 {[%clk 0:00:31]} 27. Rxb6 {[%clk 0:00:58]}  Rxc3 {[%clk 0:00:31]} 28. Kg2 {[%clk 0:00:54]}  Rc7 {[%clk 0:00:29]} 29. g5 {[%clk 0:00:49]}  hxg5 {[%clk 0:00:29]} 30. hxg5 {[%clk 0:00:49]}  Bg7 {[%clk 0:00:29]} 31. Na5 {[%clk 0:00:31]}  Kd7 {[%clk 0:00:16]} 32. a4 {[%clk 0:00:28]}  Ke7 {[%clk 0:00:04]} 33. Nc6+ {[%clk 0:00:27]}  Kf8 {[%clk 0:00:04]} 34. Ncxe5 {[%clk 0:00:24]}  Bxe5 {[%clk 0:00:04]} 35. Nxe5 {[%clk 0:00:24]}  Re8 {[%clk 0:00:04]} 36. f4 {[%clk 0:00:21]}  Rc3 {[%clk 0:00:05]} 37. Rb7 {[%clk 0:00:19]}  Rd8 {[%clk 0:00:05]} 38. Rxf7+ {[%clk 0:00:14]}  Kg8 {[%clk 0:00:05]} 39. Rd7 {[%clk 0:00:14]}  Rdc8 {[%clk 0:00:04]} 40. Rd2 {[%clk 0:00:13]}  Rb3 {[%clk 0:00:03]} 41. Rd4 {[%clk 0:00:10]}  Rc2+ {[%clk 0:00:03]} 42. Kf1 {[%clk 0:00:10]}  Rb1+ {[%clk 0:00:03]} 0-1


[Site "https://www.chess.com"]